[Event "MCCT Chessable Masters 2022"]
[Site "Online"]
[Date "2022.05.16"]
[Round "1.1"]
[White "Tari, Aryan"]
[Black "Carlsen, Magnus"]
[Result "1/2-1/2"]
[ECO "C16"]
[WhiteElo "2654"]
[BlackElo "2864"]
[Annotator "TA"]
[PlyCount "77"]
[EventDate "2022.05.19"]
[EventType "tourn"]
[EventCountry "NET"]
[SourceTitle "playchess.com"]
[Source "ChessBase"]
[SourceQuality "1"]
[TimeControl "900+10"]

{[%evp 13,77,48,76,79,87,83,79,79,84,80,87,88,79,82,97,102,112,87,150,147,151,151,151,151,151,151,151,151,151,151,151,151,159,158,158,102,102,77,77,77,77,77,77,11,73,73,73,73,73,73,73,73,73,73,73,73,73,73,73,73,73,0,73,0,73,0]} 1. e4 {[%emt 0:00:00]} e6 {[%emt 0:00:00]} 2. d4 {[%emt 0:00:06]} d5 {[%emt 0:00:03]} 3. Nc3 {[%emt 0:00:01]} Bb4 {[%emt 0:00:27]} 4. e5 {[%emt 0:00:02]} b6 {[%emt 0:00:13]} 5. a3 {[%emt 0:00:45]} Bf8 {[%emt 0:00:06]} 6. Bb5+ {[%emt 0:00:04]} c6 {[%emt 0:00:09]} 7. Ba4 {[%emt 0:00:03]} Ba6 {[%emt 0:01:11]} 8. Nce2 {[%emt 0:00:03] [#] C16: French: 3 Nc3 Bb4 4 e5: Lines without ...c5.} h5 $146 {[%emt 0:02:45]} ({Predecessor:} 8... Bb5 9. Bxb5 cxb5 10. Ng3 Nc6 11. Nf3 g6 12. h4 h5 13. Ng5 Nh6 14. O-O Ne7 15. Ne2 Nhf5 16. Nf3 Nc6 17. Bg5 Be7 18. g3 Kf8 {½-½ (18) Radovic,J (2409)-Zlatanovic,B (2392) Kragujevac 2018}) 9. Nf3 {[%emt 0:00:26]} Be7 {[%emt 0:00:01]} 10. h4 {[%emt 0:01:30]} Nh6 {[%emt 0:00:03]} 11. c3 {[%emt 0:00:52]} g6 {[%emt 0:01:52]} 12. Bg5 {[%emt 0:01:21]} Bxe2 {[%emt 0:00:21]} 13. Qxe2 {[%emt 0:00:02]} b5 {[%emt 0:01:07]} 14. Bc2 {[%emt 0:00:25]} Nd7 {[%emt 0:00:01]} 15. a4 {[%emt 0:00:40][%cal Ba3a4,Ba4a5][%mdl 32]} a6 {[%emt 0:00:06]} (15... b4 $142) 16. O-O $36 {[%emt 0:01:26][%mdl 2048] White is in control.} Nb6 {[%emt 0:00:18]} 17. a5 {[%emt 0:01:21]} Nd7 {[%emt 0:00:19][%cal Bb6d7,Bd7f8,Bf8h7][%mdl 32]} 18. b4 {[%emt 0:00:02] Against c5} Bxg5 {[%emt 0:00:02]} 19. Nxg5 {[%emt 0:00:04]} ({Don't take} 19. hxg5 Ng8 $16) 19... Nf8 {[%emt 0:00:02]} 20. Qd2 {[%emt 0:00:37] White is much more active.} Qe7 {[%emt 0:00:12]} 21. g3 {[%emt 0:00:09]} Nf5 {[%emt 0:00:03]} 22. Rae1 {[%emt 0:00:20]} O-O-O {[%emt 0:00:13]} 23. Nh3 {[%emt 0:01:00]} Nh7 {[%emt 0:00:20]} 24. Bxf5 {[%emt 0:02:19]} ({White should try} 24. Kg2) 24... gxf5 {[%emt 0:00:02]} 25. Nf4 {[%emt 0:00:12]} Rdg8 {[%emt 0:00:03] [#] aiming for ...Qxh4.} 26. Kh2 {[%emt 0:00:06]} Nf8 {[%emt 0:00:02]} 27. f3 {[%emt 0:00:15][%cal Bf2f3,Bf3f4][%mdl 32]} Ng6 {[%emt 0:00:06]} 28. Nxg6 {[%emt 0:00:21]} (28. Kh3 $16) 28... fxg6 {[%emt 0:00:09]} (28... Rxg6 $11 {keeps the balance.} 29. Rg1 Rhg8) 29. f4 {[%emt 0:00:03]} Kb7 {[%emt 0:00:02]} 30. Kg2 {[%emt 0:00:05]} Ka8 {[%emt 0:00:05]} 31. Kf2 {[%emt 0:00:04]} (31. Kf3 {feels hotter.} Kb7 32. Rg1 Ra8 33. Kf2) 31... Kb7 {[%emt 0:00:01]} 32. Ke2 {[%emt 0:00:01]} Ka8 {[%emt 0:00:01]} 33. Kd1 {[%emt 0:00:00]} (33. Kf3 {is more complex.} Kb7 34. Ra1 Ra8 35. Qe2) 33... Kb7 {[%emt 0:00:00]} 34. Kc2 {[%emt 0:00:01]} Ka8 {[%emt 0:00:01]} 35. Kb2 {[%emt 0:00:00]} Kb7 {[%emt 0:00:00]} 36. Kb3 {[%emt 0:00:01]} Ka8 {[%emt 0:00:00]} 37. Kb2 {[%emt 0:00:00]} Kb7 {[%emt 0:00:01]} 38. Kb3 {[%emt 0:00:00]} Ka8 $1 {[%emt 0:00:00]} 39. Kb2 {[%emt 0:00:01] Black escapes into a draw.  Weighted Error Value: White=0.12 (very precise) /Black=0.07 (flawless)} (39. Kc2 $16) 1/2-1/2

[Event "MCCT Chessable Masters 2022"]
[Site "Online"]
[Date "2022.05.16"]
[Round "1.2"]
[White "Grandelius, Nils"]
[Black "Giri, Anish"]
[Result "1/2-1/2"]
[ECO "B22"]
[WhiteElo "2635"]
[BlackElo "2761"]
[Annotator "TA"]
[PlyCount "80"]
[EventDate "2022.05.19"]
[EventType "tourn"]
[EventCountry "NET"]
[SourceTitle "playchess.com"]
[Source "ChessBase"]
[SourceQuality "1"]
[TimeControl "900+10"]

{[%evp 13,80,12,5,6,16,2,8,6,17,0,0,0,12,7,14,0,0,0,0,0,13,1,20,6,11,4,7,7,5,11,16,0,0,0,0,0,0,0,0,0,0,0,0,-7,0,0,0,0,0,0,0,0,0,0,0,0,0,0,0,0,0,0,0,0,0,0,0,0,0]} 1. e4 {[%emt 0:00:00]} c5 {[%emt 0:00:00]} 2. c3 {[%emt 0:00:03]} Nf6 {[%emt 0:00:31]} 3. e5 {[%emt 0:00:02]} Nd5 {[%emt 0:00:01]} 4. Bc4 {[%emt 0:00:00]} e6 {[%emt 0:00:44]} 5. Nf3 {[%emt 0:00:05]} d6 {[%emt 0:00:16]} 6. d4 {[%emt 0:00:02]} cxd4 {[%emt 0:00:02]} 7. cxd4 {[%emt 0:00:00]} Be7 {[%emt 0:00:00] The position is equal.} 8. O-O {[%emt 0:00:03] B22: Sicilian: 2 c3.} O-O {[%emt 0:00:01]} 9. Qe2 {[%emt 0:00:03]} a6 {[%emt 0:00:02]} 10. Rd1 {[%emt 0:01:27]} b5 {[%emt 0:00:45] [#]} 11. Bxd5 $146 {[%emt 0:00:04]} ({Predecessor:} 11. Bd3 Bb7 12. Qe4 g6 13. Bh6 Re8 14. Nbd2 Nd7 15. Qg4 dxe5 16. dxe5 Nb4 17. Be4 Bxe4 18. Nxe4 {½-½ (47) Rakhmangulova,A (2229)-Stalmach,R (2306) Frydek Mistek 2022}) 11... exd5 {[%emt 0:00:02]} 12. Nc3 {[%emt 0:00:01]} Be6 {[%emt 0:00:28]} 13. Bf4 {[%emt 0:01:00]} Nc6 {[%emt 0:00:14]} 14. exd6 {[%emt 0:00:46]} Bxd6 {[%emt 0:00:01]} 15. Bxd6 {[%emt 0:00:00]} Qxd6 {[%emt 0:00:01]} 16. Ne5 {[%emt 0:00:00] Prevents Bg4.} Ne7 {[%emt 0:03:45]} 17. Qd2 {[%emt 0:00:48]} Bf5 {[%emt 0:00:09]} 18. Rac1 {[%emt 0:00:24]} Rac8 {[%emt 0:00:06]} 19. Ne2 {[%emt 0:01:22]} f6 {[%emt 0:00:17] [#] Hoping for ...Rxc1.} 20. Nd3 {[%emt 0:00:03]} Bxd3 {[%emt 0:00:03]} 21. Qxd3 {[%emt 0:00:00]} Rc4 {[%emt 0:00:35]} 22. b3 {[%emt 0:00:31]} Rxc1 {[%emt 0:00:01]} 23. Rxc1 {[%emt 0:00:00]} Rc8 {[%emt 0:00:07]} 24. Rxc8+ {[%emt 0:02:43]} Nxc8 $11 {[%emt 0:00:00][%mdl 4096] Endgame KQN-KQN} 25. g3 {[%emt 0:00:01]} Ne7 {[%emt 0:00:24]} 26. Nf4 {[%emt 0:00:29]} g5 {[%emt 0:01:13]} 27. Ng2 {[%emt 0:00:11]} Qe6 {[%emt 0:00:11]} 28. f3 {[%emt 0:02:20]} Qf5 {[%emt 0:01:03]} 29. Qxf5 {[%emt 0:01:00]} Nxf5 {[%emt 0:00:02] KN-KN} 30. Kf2 {[%emt 0:00:00]} Kf7 {[%emt 0:00:16]} 31. Ne3 {[%emt 0:00:03]} Ke6 {[%emt 0:02:02]} 32. Nxf5 {[%emt 0:01:10]} Kxf5 {[%emt 0:00:00] KP-KP} 33. b4 {[%emt 0:00:16]} Kg6 {[%emt 0:00:46]} 34. g4 {[%emt 0:00:49]} h6 {[%emt 0:00:14]} 35. h3 {[%emt 0:00:04]} Kf7 {[%emt 0:00:01]} 36. Ke3 {[%emt 0:00:01]} Ke6 {[%emt 0:00:01]} 37. Kd3 {[%emt 0:00:02]} Kd6 {[%emt 0:00:00]} 38. Ke3 {[%emt 0:00:01]} Ke6 {[%emt 0:00:01]} 39. Kd3 {[%emt 0:00:00]} Kd6 {[%emt 0:00:00]} 40. Ke3 {[%emt 0:00:00]} Ke6 {[%emt 0:00:00] An even fight not without its subleties.  Weighted Error Value: White=0.03 (flawless) /Black=0.02 (flawless)} 1/2-1/2

[Event "MCCT Chessable Masters 2022"]
[Site "Online"]
[Date "2022.05.16"]
[Round "1.3"]
[White "Praggnanandhaa R"]
[Black "Wei, Yi"]
[Result "1/2-1/2"]
[ECO "B51"]
[WhiteElo "2642"]
[BlackElo "2727"]
[Annotator "TA"]
[PlyCount "85"]
[EventDate "2022.05.19"]
[EventType "tourn"]
[EventCountry "NET"]
[SourceTitle "playchess.com"]
[Source "ChessBase"]
[SourceQuality "1"]
[TimeControl "900+10"]

{[%evp 9,85,11,18,12,21,18,21,15,25,12,13,14,28,17,27,16,26,0,37,4,0,0,0,0,0,-6,-5,0,0,0,0,0,-5,-6,0,0,0,0,0,0,6,3,10,3,3,4,6,0,0,0,0,0,0,0,0,0,0,0,0,0,0,0,0,0,0,0,0,0,0,0,0,0,0,0,0,0,0,0]} 1. e4 {[%emt 0:00:00]} c5 {[%emt 0:00:00]} 2. Nf3 {[%emt 0:00:05]} d6 {[%emt 0:00:03]} 3. Bb5+ {[%emt 0:00:12]} Nd7 {[%emt 0:00:20]} 4. a4 {[%emt 0:00:06]} Ngf6 {[%emt 0:00:06]} 5. Nc3 {[%emt 0:00:03]} a6 {[%emt 0:00:23]} 6. Be2 {[%emt 0:00:09] B51: Sicilian: Moscow Variation (3 Bb5+) without 3...Bd7.} b6 {[%emt 0:00:12]} 7. d4 {[%emt 0:00:07]} cxd4 {[%emt 0:00:09]} 8. Qxd4 {[%emt 0:00:00]} Bb7 {[%emt 0:00:05]} 9. O-O {[%emt 0:00:16]} e5 {[%emt 0:00:01]} 10. Qe3 {[%emt 0:00:12]} Be7 {[%emt 0:00:33]} 11. Nd2 {[%emt 0:00:56]} O-O {[%emt 0:00:26]} 12. Rd1 {[%emt 0:01:09]} Qc7 {[%emt 0:02:04]} 13. Nc4 {[%emt 0:01:51]} Nc5 {[%emt 0:00:04][%cal Rf6e4]} 14. Bf3 {[%emt 0:03:39] [#]} Rad8 $146 {[%emt 0:00:04][%cal Oc5a4] The position is equal.} ({Predecessor:} 14... Rab8 15. b3 Ne6 16. Qxb6 Qxb6 17. Nxb6 Nd4 18. Bg5 Bc6 19. a5 Nxc2 20. Rac1 Nd4 {1-0 (79) Alsina Leal,D (2474)-Dylag,E (2070) Prague 2020}) 15. Qe2 {[%emt 0:02:04]} Ncxe4 {[%emt 0:01:02]} 16. Nxe4 {[%emt 0:00:16]} ({Don't play} 16. Bxe4 Nxe4 17. Nxe4 d5 18. Nxe5 dxe4 19. Rxd8 (19. Bf4 $2 Rxd1+ 20. Rxd1 Bd6 $19) 19... Rxd8 $15) 16... Nxe4 {[%emt 0:00:14]} 17. Bxe4 {[%emt 0:00:04]} Bxe4 {[%emt 0:00:04]} 18. Qxe4 {[%emt 0:00:18] [#] Ne3 is the strong threat.} d5 $1 {[%emt 0:00:01]} 19. Qxe5 {[%emt 0:01:13]} ({But not} 19. Rxd5 Rxd5 20. Qxd5 Rd8 $17) 19... dxc4 {[%emt 0:00:05]} 20. Bf4 {[%emt 0:00:01]} Rxd1+ {[%emt 0:03:00]} 21. Rxd1 {[%emt 0:00:03] [#]} Rd8 $1 {[%emt 0:00:02]} 22. Rxd8+ {[%emt 0:01:19]} (22. Qxc7 $2 Rxd1#) 22... Qxd8 $11 {[%emt 0:00:03][%mdl 4096] Endgame KQB-KQB} 23. g3 {[%emt 0:00:08]} Bf6 {[%emt 0:05:22]} 24. Qe4 {[%emt 0:00:03]} Qc8 {[%emt 0:00:08]} 25. c3 {[%emt 0:00:53]} b5 {[%emt 0:00:10]} 26. axb5 {[%emt 0:00:37]} axb5 {[%emt 0:00:01]} 27. Qd5 {[%emt 0:00:20]} Qe8 {[%emt 0:00:02]} 28. Kg2 {[%emt 0:00:51]} g6 {[%emt 0:01:08]} 29. Bh6 {[%emt 0:00:24]} Bg7 {[%emt 0:00:17]} 30. Be3 {[%emt 0:00:02]} h5 {[%emt 0:00:14]} 31. h3 {[%emt 0:00:16]} Qe5 {[%emt 0:00:52]} 32. Qd8+ {[%emt 0:01:16]} Kh7 {[%emt 0:00:02]} 33. Qd7 {[%emt 0:00:05]} Qe4+ {[%emt 0:01:08]} 34. Kh2 {[%emt 0:00:03]} Qf5 {[%emt 0:00:02]} 35. Qb7 {[%emt 0:00:16]} Kg8 {[%emt 0:00:24]} 36. Kg2 {[%emt 0:00:13]} Bf6 {[%emt 0:00:15]} 37. Qc6 {[%emt 0:00:41]} Kh7 {[%emt 0:00:22]} 38. Qb7 {[%emt 0:00:10]} Kg7 {[%emt 0:00:09]} 39. h4 {[%emt 0:00:17]} Kg8 {[%emt 0:00:11]} 40. Qa8+ {[%emt 0:00:03]} Kg7 {[%emt 0:00:08]} 41. Qb7 {[%emt 0:00:02]} Kg8 {[%emt 0:00:01]} 42. Qa8+ {[%emt 0:00:37]} Kg7 {[%emt 0:00:01]} 43. Qb7 {[%emt 0:00:05] A balanced but interesting game.  Weighted Error Value: White=0.02 (flawless) /Black=0.02 (flawless)} 1/2-1/2

[Event "MCCT Chessable Masters 2022"]
[Site "Online"]
[Date "2022.05.16"]
[Round "1.4"]
[White "Harikrishna, Pentala"]
[Black "Vidit, Santosh Gujrathi"]
[Result "1/2-1/2"]
[ECO "D41"]
[WhiteElo "2705"]
[BlackElo "2723"]
[Annotator "TA"]
[PlyCount "87"]
[EventDate "2022.05.19"]
[EventType "tourn"]
[EventCountry "NET"]
[SourceTitle "playchess.com"]
[Source "ChessBase"]
[SourceQuality "1"]
[TimeControl "900+10"]

{[%evp 11,87,19,25,16,26,32,14,16,32,21,20,20,20,13,18,10,10,10,10,10,10,10,10,7,13,-15,-21,-11,-2,-16,-7,-13,-8,-30,-10,-12,0,-23,-32,-30,-13,-16,-20,-14,0,0,0,0,0,0,0,-5,0,-4,0,0,0,0,0,-5,-6,0,-5,-8,0,0,0,0,0,0,0,0,0,0,0,0,0,0]} 1. d4 {[%emt 0:00:00] Giri,Anish} Nf6 {[%emt 0:00:00]} 2. c4 {[%emt 0:00:02]} e6 {[%emt 0:00:02]} 3. Nf3 {[%emt 0:00:01]} d5 {[%emt 0:00:01]} 4. Nc3 {[%emt 0:00:02]} c5 {[%emt 0:00:13]} 5. cxd5 {[%emt 0:00:06]} cxd4 {[%emt 0:00:01]} 6. Qxd4 {[%emt 0:00:02]} exd5 {[%emt 0:00:01]} 7. e4 {[%emt 0:00:04][%cal Re4d5] D41: Queen's Gambit Declined: Semi-Tarrasch with 5 cxd5.} dxe4 $1 {[%emt 0:00:02][%mdl 4] is recently more successful than 7...Nc6.} 8. Qxd8+ {[%emt 0:00:02]} Kxd8 {[%emt 0:00:00]} 9. Ng5 {[%emt 0:00:01][%csl LRe4,LRf7]} Be6 {[%emt 0:00:01]} 10. Bb5 {[%emt 0:00:02][%cal Bf1b5,Bb5a4,Ba4c2,Bc2b3,Bb3d5][%mdl 1056] White has compensation.} a6 {[%emt 0:00:41]} 11. Ba4 {[%emt 0:00:03]} Nbd7 {[%emt 0:00:05]} 12. O-O {[%emt 0:00:34] [#]} Nc5 $146 {[%emt 0:00:33]} ({Predecessor:} 12... b5 13. Bb3 Ke7 14. Be3 h6 15. Ngxe4 Ke8 16. Bd4 Bb4 17. Rae1 Ke7 18. f4 Rhd8 {1-0 (36) Giri,A (2764)-Vidit,S (2726) chess24.com INT 2021 CBM 201 [Giri,Anish]}) 13. Rd1+ {[%emt 0:00:46]} Ke7 {[%emt 0:00:04]} 14. Bc2 {[%emt 0:00:36]} Rc8 {[%emt 0:00:15]} 15. Be3 {[%emt 0:00:30]} (15. Ngxe4 Ncxe4 16. Bxe4 Rxc3 $1 {[%mdl 512]} 17. Bxb7 Rc7 18. Bxa6 Rd7 $17) 15... h6 {[%emt 0:00:29]} 16. Bxc5+ {[%emt 0:00:50]} ({Much weaker is} 16. Ngxe4 Ncxe4 17. Bxe4 {[#]} Rxc3 $1 {[%mdl 512]} 18. bxc3 Nxe4 $17) 16... Rxc5 {[%emt 0:00:00]} 17. Ngxe4 {[%emt 0:00:02] Pair of Knights!} Rc6 {[%emt 0:00:53]} 18. Bb3 {[%emt 0:01:58]} Nxe4 {[%emt 0:05:29]} 19. Nxe4 {[%emt 0:00:25]} g6 {[%emt 0:03:26]} 20. Bd5 {[%emt 0:05:48]} Rc2 {[%emt 0:02:18]} 21. Bxb7 {[%emt 0:00:06]} Bg7 {[%emt 0:00:09]} 22. Bd5 {[%emt 0:00:32]} Bxb2 {[%emt 0:00:27]} 23. Bxe6 {[%emt 0:00:41]} ({Reject} 23. Rab1 Rd8 24. Bxe6 Rxd1+ 25. Rxd1 Kxe6 $15) 23... Kxe6 {[%emt 0:01:14]} ({But not} 23... Bxa1 24. Bb3 Rc6 25. Rxa1 $16) (23... fxe6 $5 24. Rab1 Rd8 $11) 24. Rab1 {[%emt 0:00:11]} Rhc8 {[%emt 0:01:03]} 25. Re1 {[%emt 0:01:07]} f5 {[%emt 0:00:12]} 26. Nd2+ {[%emt 0:01:08] The position is equal.} Kf6 {[%emt 0:00:08]} 27. Nf3 {[%emt 0:00:04]} Rd8 {[%emt 0:00:32]} 28. Kf1 {[%emt 0:00:28]} Rd6 {[%emt 0:00:43]} 29. Re2 {[%emt 0:00:23]} Rxe2 {[%emt 0:00:01]} 30. Kxe2 $11 {[%emt 0:00:01][%mdl 4096] Endgame KRB-KRN} Re6+ {[%emt 0:00:03]} 31. Kf1 {[%emt 0:00:25]} Ba3 {[%emt 0:00:04]} 32. h3 {[%emt 0:00:21]} Bc5 {[%emt 0:00:15]} 33. Rc1 {[%emt 0:00:12]} Bb6 {[%emt 0:00:04]} 34. Nd2 {[%emt 0:00:08]} g5 {[%emt 0:00:24]} 35. Rc8 {[%emt 0:00:03]} Ba5 {[%emt 0:00:11]} 36. Rc2 {[%emt 0:00:02]} h5 {[%emt 0:00:21]} 37. g3 {[%emt 0:00:10]} Bxd2 {[%emt 0:00:07]} 38. Rxd2 {[%emt 0:00:02] KR-KR} g4 {[%emt 0:00:19]} 39. hxg4 {[%emt 0:00:05]} hxg4 {[%emt 0:00:00]} 40. Rd5 {[%emt 0:00:05]} Re5 {[%emt 0:00:05]} 41. Rd6+ {[%emt 0:00:02]} Re6 {[%emt 0:00:01]} 42. Rd5 {[%emt 0:00:00]} Re5 {[%emt 0:00:02]} 43. Rd6+ {[%emt 0:00:01]} Re6 {[%emt 0:00:01]} 44. Rd5 {[%emt 0:00:04] An interesting draw.  Weighted Error Value: White=0.03 (flawless) /Black=0.03 (flawless)} 1/2-1/2

[Event "MCCT Chessable Masters 2022"]
[Site "Online"]
[Date "2022.05.16"]
[Round "1.5"]
[White "Jones, Gawain C B"]
[Black "Shankland, Sam"]
[Result "0-1"]
[ECO "B22"]
[WhiteElo "2669"]
[BlackElo "2718"]
[Annotator "TA"]
[PlyCount "96"]
[EventDate "2022.05.19"]
[EventType "tourn"]
[EventCountry "NET"]
[SourceTitle "playchess.com"]
[Source "ChessBase"]
[SourceQuality "1"]
[TimeControl "900+10"]

{[%evp 14,96,13,0,16,8,5,6,20,23,21,12,22,10,21,0,0,0,0,0,0,0,0,-8,-1,-15,-11,-10,-1,-48,-20,-32,-11,-14,-8,-37,-10,-41,-36,-62,-55,-64,-67,-64,-58,-66,-60,-72,-50,-62,-62,-113,-92,-85,-76,-128,-135,-168,-166,-368,-327,-748,-938,-807,-745,-1870,-1606,-1057,-483,-1132,-1175,-1454,-1199,-29973,-5320,-29978,-29979,-29978,-29980,-29985,-29986,-29986,-29987,-29987,-29988]} 1. e4 {[%emt 0:00:00][%cal Be2e4,Be4e5][%mdl 32]} c5 {[%emt 0:00:00]} 2. c3 {[%emt 0:00:03]} Nf6 {[%emt 0:00:03]} 3. e5 {[%emt 0:00:02]} Nd5 {[%emt 0:00:01]} 4. Nf3 {[%emt 0:00:01]} d6 {[%emt 0:00:08]} 5. d4 {[%emt 0:00:26]} cxd4 {[%emt 0:00:10]} 6. cxd4 {[%emt 0:00:12]} Nc6 {[%emt 0:00:07]} 7. Bc4 {[%emt 0:00:47]} dxe5 {[%emt 0:00:07]} 8. dxe5 {[%emt 0:00:01]} Be6 {[%emt 0:00:01][%cal Od5e3] B22: Sicilian: 2 c3.} 9. O-O {[%emt 0:00:32]} g6 {[%emt 0:00:03]} 10. Ng5 {[%emt 0:00:06] The main line 10.Ng5 scores better than 10.Qe2.} Bg7 {[%emt 0:00:03] The position is equal.} 11. Nxe6 {[%emt 0:00:02]} fxe6 {[%emt 0:00:01]} 12. f4 {[%emt 0:00:06]} Qa5 $5 {[%emt 0:00:08][%mdl 4] [#] Against Nc3. ...Qc5+ is the strong threat. An interesting side line.} 13. Bxd5 $146 {[%emt 0:00:33]} ({Predecessor:} 13. Kh1 Qc5 14. Na3 O-O 15. Qg4 Nd4 16. Bd2 Nf5 17. Qe2 Rac8 18. Rac1 Qb6 19. b3 {0-1 (48) Wagner,B-Heinrich,R freechess.de 2014}) 13... exd5 {[%emt 0:00:18]} 14. Nc3 {[%emt 0:00:46]} e6 {[%emt 0:01:21]} 15. Qg4 {[%emt 0:02:04]} Nd4 {[%emt 0:01:00]} 16. Be3 {[%emt 0:00:03]} Nf5 {[%emt 0:00:03][%cal Bd4f5,Bf5e7,Be7c6][%mdl 32] [#] And now ...d4 would win.} 17. Bf2 {[%emt 0:00:01]} O-O {[%emt 0:00:13]} 18. Qe2 {[%emt 0:01:02]} Rac8 {[%emt 0:00:52]} 19. g4 {[%emt 0:01:31]} Ne7 {[%emt 0:00:04]} 20. Bh4 {[%emt 0:00:03]} Nc6 {[%emt 0:02:34]} 21. Nb5 {[%emt 0:00:06]} (21. Rad1 $11) 21... Qb4 {[%emt 0:00:32]} 22. Bg3 $1 {[%emt 0:03:19]} Nd4 $36 {[%emt 0:00:49][%mdl 2048] Black has some pressure.} 23. Nxd4 {[%emt 0:00:02]} Qxd4+ {[%emt 0:00:01]} 24. Rf2 {[%emt 0:00:36]} Rc4 {[%emt 0:00:21][%cal Og6g5]} 25. Raf1 {[%emt 0:00:34]} Rfc8 {[%emt 0:01:48]} 26. Kh1 {[%emt 0:01:32]} Qe4+ {[%emt 0:01:50]} 27. Qxe4 {[%emt 0:00:03]} Rxe4 {[%emt 0:00:00]} ({But not} 27... dxe4 28. b3 e3 29. Re2 $11 (29. bxc4 exf2 30. Rxf2 Rxc4 $11)) 28. Kg2 {[%emt 0:01:22]} Kf7 {[%emt 0:00:09] Black is more active.} 29. Rd1 {[%emt 0:00:23]} h5 {[%emt 0:00:42]} 30. h3 {[%emt 0:00:13]} hxg4 {[%emt 0:00:17]} 31. hxg4 {[%emt 0:00:00]} g5 $1 {[%emt 0:00:01]} 32. f5 {[%emt 0:01:10] Black keeps a firm grip on the game.} ({Better is} 32. Rdf1 $15) 32... Bxe5 {[%emt 0:00:30]} (32... Rxg4 {is interesting.} 33. f6 Bh6 34. Rh1 Kg6) 33. Bxe5 {[%emt 0:00:12]} Rxe5 {[%emt 0:00:01]} 34. fxe6+ {[%emt 0:00:18]} (34. Rh1 $142) 34... Kxe6 $17 {[%emt 0:00:05][%mdl 4096] Endgame KRR-KRR} 35. Rdf1 {[%emt 0:00:14]} d4 {[%emt 0:00:59][%cal Bd5d4,Bd4d3][%mdl 32]} 36. Rf6+ $2 {[%emt 0:00:15]} (36. Rd2 {was worth a try.}) 36... Kd5 $19 {[%emt 0:00:01]} 37. R1f2 $2 {[%emt 0:00:01]} (37. Rf7 Rc2+ 38. R1f2) 37... d3 {[%emt 0:00:39]} 38. Rf7 {[%emt 0:00:32]} Ke4 {[%emt 0:02:35]} 39. Rf1 {[%emt 0:01:22]} Rc2+ {[%emt 0:00:06]} 40. Kg3 {[%emt 0:00:17]} Rxb2 {[%emt 0:00:05]} (40... d2 $142 {Strongly threatening ...Rc1.} 41. Rd1 Ke3) 41. Re1+ {[%emt 0:00:55]} (41. Rd1 $142 d2 42. Kf2) 41... Kd4 {[%emt 0:00:22] ( -> ...d2)} 42. Rd7+ {[%emt 0:00:01]} Rd5 {[%emt 0:00:00]} 43. Rde7 {[%emt 0:00:16]} d2 {[%emt 0:00:08]} 44. Rd1 {[%emt 0:00:04]} Kd3 {[%emt 0:00:06] Black mates.} 45. Kf3 {[%emt 0:00:08]} Rb4 {[%emt 0:00:15]} 46. Rh1 {[%emt 0:00:23]} Rf4+ {[%emt 0:00:09]} 47. Kg3 {[%emt 0:00:01]} Re4 {[%emt 0:00:05]} 48. Rxb7 {[%emt 0:00:19]} Re1 {[%emt 0:00:02] Weighted Error Value: White=0.89/Black=0.18 (very precise)} 0-1